[Event "3rd Sunway Formentera-A 2024"]
[Site "Formentera"]
[Date "2024.04.17"]
[Round "8.8"]
[White "Schulman, Julia"]
[Black "Anishka Vikram"]
[Result "0-1"]
[ECO "B76"]
[WhiteElo "1732"]
[BlackElo "2036"]
[Annotator "TA"]
[PlyCount "112"]
[EventDate "2024.04.03"]
[EventType "swiss"]
[EventCountry "ESP"]
[SourceTitle "playchess.com"]
[Source "ChessBase"]
[SourceQuality "1"]
[TimeControl "40/5400+30:1800+30"]

{[%evp 22,112,28,39,34,23,37,22,13,29,83,89,105,79,67,85,120,130,119,125,130,162,142,121,110,107,134,83,95,104,90,6,0,0,16,0,0,0,0,-15,-6,-7,0,0,0,-179,-195,-195,0,0,0,-229,-224,-209,-237,-231,-235,-239,-226,-181,-94,-89,-40,-238,-252,-333,-333,-333,-333,-304,-326,-411,-404,-442,-437,-1944,-1779,-29973,-29974,-29970,-29971,-29968,-29976,-29981,-29982,-29981,-29981,-29976,-29976,-29987,-29988,-29988,-29989]} 1. e4 {[%emt 0:00:04]} c5 {[%emt 0:00:37]} 2. Nf3 {[%emt 0:00:12]} d6 {[%emt 0:00:12]} 3. d4 {[%emt 0:00:15]} cxd4 {[%emt 0:00:09]} 4. Nxd4 {[%emt 0:00:13]} Nf6 {[%emt 0:00:17]} 5. Nc3 {[%emt 0:00:14]} g6 {[%emt 0:00:25]} 6. Be3 {[%emt 0:00:38]} Bg7 {[%emt 0:00:20]} 7. f3 {[%emt 0:00:35]} O-O {[%emt 0:00:21]} 8. Qd2 {[%emt 0:00:10]} Nc6 {[%emt 0:00:13][%cal Bb8c6,Bc6e5,Be5f3][%mdl 32]} 9. g4 {[%emt 0:00:48]} Be6 {[%emt 0:00:25]} 10. Nxe6 {[%emt 0:00:39]} fxe6 {[%emt 0:00:07]} 11. O-O-O {[%emt 0:00:19]} Ne5 {[%emt 0:00:46]} 12. Be2 {[%emt 0:00:20]} Qc8 {[%emt 0:00:21]} 13. h4 {[%emt 0:00:44][%cal Bh2h4,Bh4h5][%mdl 32] Black should prevent h5.} Nfd7 {[%emt 0:00:46]} 14. h5 {[%emt 0:01:12]} (14. f4 {simplifies} Nc4 15. Bxc4 Qxc4 16. e5) 14... Nxf3 {[%emt 0:19:53] The position is equal.} 15. Nd5 {[%emt 0:02:45]} exd5 {[%emt 0:35:59]} (15... Nxd2 $11 16. Nxe7+ Kf7 17. Nxc8 Raxc8 18. Rxd2 (18. Kxd2 Bxb2 19. hxg6+ hxg6 $11) (18. Bxd2 Nc5 $14) 18... Ke7) 16. Qxd5+ $16 {[%emt 0:00:53]} Rf7 {[%emt 0:00:44] And now ...Nde5 would win.} ({Don't blunder} 16... Kh8 $2 17. hxg6 Nf6 18. Rxh7+ Nxh7 19. Qh5 $18) 17. hxg6 {[%emt 0:16:30]} hxg6 {[%emt 0:02:41]} 18. Bxf3 {[%emt 0:02:49] This pair of bishops is nice.} Qc6 {[%emt 0:13:58] [#]} 19. e5 $1 {[%emt 0:20:29][%mdl 512]} Nxe5 {[%emt 0:05:38] [#]} 20. Qxf7+ {[%emt 0:03:06][%mdl 512]} Nxf7 {[%emt 0:01:08]} (20... Kxf7 21. Bxc6) 21. Bxc6 {[%emt 0:00:20]} bxc6 {[%emt 0:00:04]} 22. b3 {[%emt 0:11:18]} e5 {[%emt 0:01:55]} 23. c4 {[%emt 0:03:05]} Rd8 {[%emt 0:03:25]} 24. a4 {[%emt 0:02:44]} (24. Rh2 $142) 24... Rd7 {[%emt 0:04:55]} 25. Rhe1 {[%emt 0:10:14]} d5 {[%emt 0:01:44]} 26. Kb1 {[%emt 0:06:22]} (26. b4 $16) 26... d4 $1 $11 {[%emt 0:01:22]} 27. Bc1 {[%emt 0:01:09]} c5 {[%emt 0:00:26]} 28. Ba3 {[%emt 0:01:58]} Rc7 {[%emt 0:00:19]} 29. Kc2 {[%emt 0:02:30]} Nd6 {[%emt 0:01:14]} 30. Kd3 {[%emt 0:02:43]} Kf7 {[%emt 0:03:06][%mdl 1024] Black has compensation.} 31. Rd2 {[%emt 0:00:53]} a5 {[%emt 0:01:36]} 32. Rde2 {[%emt 0:00:33]} Ke6 {[%emt 0:00:19]} 33. Rh2 $2 {[%emt 0:01:21] [#]} (33. Kc2 $11) 33... Rb7 $1 $19 {[%emt 0:00:47]} 34. Rb2 {[%emt 0:02:25]} Rc7 {[%emt 0:00:28]} ({Better is} 34... e4+ $19 35. Rxe4+ Nxe4 36. Kxe4 Kd6) 35. Rh2 $11 {[%emt 0:01:11]} Rb7 $2 {[%emt 0:00:04]} (35... e4+ $11 36. Rxe4+ Nxe4 37. Kxe4 Kd6) 36. Rb2 $1 $19 {[%emt 0:00:21]} e4+ {[%emt 0:01:04]} 37. Rxe4+ {[%emt 0:02:17]} Nxe4 {[%emt 0:00:04]} 38. Kxe4 {[%emt 0:00:04][%mdl 4096] Endgame. KRB-KRB} Kd6 {[%emt 0:00:15]} 39. Kd3 {[%emt 0:01:04]} Be5 {[%emt 0:00:56]} 40. Rb1 {[%emt 0:00:00]} Rh7 {[%emt 0:00:00]} ({Black should try} 40... Rf7 $19 {...Rf3+ would now be deadly.} 41. Ke2 Rh7) 41. Ke4 $17 {[%emt 0:04:21][%cal Oa3c5]} Bf6 {[%emt 0:16:06]} (41... Rh2 $17 {...Re2+ is the strong threat.} 42. Re1 Rh3) 42. Rd1 $2 {[%emt 0:06:34] [#]} ({White must play} 42. Bc1 $15) 42... Re7+ $1 $19 {[%emt 0:02:28]} 43. Kd3 {[%emt 0:01:22]} Re3+ {[%emt 0:00:19]} 44. Kc2 {[%emt 0:00:10]} Rc3+ {[%emt 0:00:49]} 45. Kb2 {[%emt 0:02:39]} Rg3 {[%emt 0:07:08]} 46. Rf1 {[%emt 0:02:04]} Bg5 {[%emt 0:04:16]} 47. Rd1 {[%emt 0:05:13]} Rxg4 {[%emt 0:00:36]} 48. Rd3 {[%emt 0:01:04]} (48. Rh1 $142) 48... Be3 {[%emt 0:01:04] Hoping for ...g5.} 49. Kc2 {[%emt 0:01:00]} Rg2+ {[%emt 0:00:09] Black mates.} 50. Kb1 {[%emt 0:01:19]} Rg1+ {[%emt 0:00:35]} 51. Kc2 {[%emt 0:01:40]} g5 {[%emt 0:01:07]} 52. Bb2 {[%emt 0:01:03]} g4 {[%emt 0:00:25]} 53. b4 {[%emt 0:01:38]} axb4 {[%emt 0:00:09]} 54. a5 {[%emt 0:04:40]} Kc6 {[%emt 0:00:26]} 55. Rxe3 {[%emt 0:02:21]} dxe3 {[%emt 0:00:05]} 56. Kd3 {[%emt 0:00:17] [#]} e2 $1 {[%emt 0:00:17] Never resign too early!   Weighted Error Value: White=0.47/Black=0.11 (very precise) .  Loses game:     	White=2     	---        Missed win:     	---       	Black=1      Mistake:       	White=3     	Black=4      Inaccurate:     	White=2     	Black=1      OK:         	White=11    	Black=16     Best:        	White=4     	Black=3      Strong:       	White=1     	Black=3      Brilliant:      	White=1     	---} 0-1

[Event "3rd Sunway Formentera-A 2024"]
[Site "Formentera"]
[Date "2024.04.17"]
[Round "8.9"]
[White "Svensen, Tarjei Joten"]
[Black "Botez, Alexandra"]
[Result "0-1"]
[ECO "E62"]
[WhiteElo "2054"]
[BlackElo "1970"]
[Annotator "TA"]
[PlyCount "150"]
[EventDate "2024.04.03"]
[EventType "swiss"]
[EventCountry "ESP"]
[SourceTitle "playchess.com"]
[Source "ChessBase"]
[SourceQuality "1"]
[TimeControl "40/5400+30:1800+30"]

{[%evp 48,150,131,125,166,99,109,108,164,166,235,221,485,504,481,400,585,393,406,365,379,381,372,355,381,253,271,270,276,267,463,349,358,326,364,362,364,358,411,415,482,390,387,275,283,260,260,258,256,232,347,175,189,160,473,442,473,445,796,767,1727,808,1327,483,451,446,433,357,436,430,877,843,728,318,325,320,437,136,113,115,201,114,358,367,347,72,72,71,343,386,380,375,1402,129,4622,619,507,-944,-871,-1622,-1479,-29975,-29976,-29977,-29978]} 1. d4 {[%emt 0:03:42]} Nf6 {[%emt 0:00:06]} 2. c4 {[%emt 0:00:10]} g6 {[%emt 0:00:06]} 3. Nc3 {[%emt 0:00:07]} Bg7 {[%emt 0:00:13]} 4. g3 {[%emt 0:00:11]} d6 {[%emt 0:00:41]} 5. Bg2 {[%emt 0:00:06]} O-O {[%emt 0:00:13]} 6. Nf3 {[%emt 0:00:04]} c6 {[%emt 0:01:53]} 7. h3 {[%emt 0:00:42]} Qc7 {[%emt 0:01:31]} 8. O-O {[%emt 0:00:53]} e5 {[%emt 0:00:32]} 9. e4 {[%emt 0:00:19]} a5 {[%emt 0:00:24] E62: King's Indian: Fianchetto: 6...c6 and Panno Variation (6...Nc6) without ...a6.} 10. Be3 {[%emt 0:01:45]} Na6 {[%emt 0:02:28]} 11. b3 {[%emt 0:06:26]} Rb8 $146 {[%emt 0:02:41]} ({Predecessor:} 11... Nd7 12. Qc2 Nb4 13. Qd2 exd4 14. Nxd4 Nc5 15. Rab1 Ne6 16. Rfd1 Rd8 17. Nde2 Na6 {1-0 Leski,M (2430)-Robinson,R Continental op 1993}) 12. Qe2 {[%emt 0:08:06]} exd4 {[%emt 0:07:33]} 13. Bxd4 {[%emt 0:02:35]} Re8 {[%emt 0:04:34]} 14. Qb2 {[%emt 0:12:13]} Nb4 {[%emt 0:19:41]} 15. Rad1 {[%emt 0:02:59]} Nh5 {[%emt 0:20:51]} 16. Bxg7 {[%emt 0:07:14]} Nxg7 {[%emt 0:00:04]} 17. Qd2 {[%emt 0:01:10]} Rd8 {[%emt 0:09:59]} 18. a3 {[%emt 0:02:52]} Na6 {[%emt 0:00:22]} 19. e5 {[%emt 0:00:22]} Ne8 {[%emt 0:08:14]} 20. Ne4 {[%emt 0:08:06]} Qe7 {[%emt 0:00:34]} 21. Qxa5 {[%emt 0:15:02]} Bf5 {[%emt 0:02:18]} 22. Nxd6 {[%emt 0:01:45]} Nxd6 {[%emt 0:00:05]} 23. exd6 {[%emt 0:00:06]} Rxd6 {[%emt 0:00:16]} 24. Rfe1 {[%emt 0:08:37]} Rxd1 {[%emt 0:00:19]} 25. Rxd1 {[%emt 0:00:01]} Qf6 {[%emt 0:13:34]} 26. Ne1 {[%emt 0:05:57]} ({White should try} 26. b4 $18) 26... Re8 {[%emt 0:00:30]} 27. Qb6 {[%emt 0:03:47]} Qc3 {[%emt 0:01:39]} (27... Rb8 $16 28. g4 Be6) 28. Nf3 $18 {[%emt 0:00:59]} Bxh3 {[%emt 0:01:27]} (28... Bc2 $142 29. Rd7 Bxb3 30. Rxb7 (30. Qxb7 Nc5 $17) 30... Bxc4 31. Qxc6 Re2) 29. Qxb7 $1 $18 {[%emt 0:01:21]} (29. Bxh3 Qxf3 30. Rd8 Rxd8 31. Qxd8+ Kg7 32. Qd4+ Qf6 33. Qxf6+ Kxf6) 29... Bxg2 $2 {[%emt 0:00:37]} (29... Nc5 {was necessary.} 30. Qc7 (30. Qxc6 Rc8 $18) 30... Bxg2 31. Kxg2 Nxb3 32. Qxc6 Rf8) 30. Kxg2 $18 {[%emt 0:00:01]} Nb8 {[%emt 0:00:27]} 31. Rd4 {[%emt 0:02:16]} Rf8 {[%emt 0:01:02]} (31... Qa5 $142 32. Rf4 Rf8) 32. Re4 {[%emt 0:01:53]} Qd3 {[%emt 0:00:48]} 33. Re3 {[%emt 0:00:40]} Qd6 {[%emt 0:00:23]} 34. b4 {[%emt 0:00:34]} Nd7 {[%emt 0:00:10]} 35. Qa7 {[%emt 0:00:46]} f6 {[%emt 0:00:46]} 36. Qd4 {[%emt 0:00:19]} Qxd4 37. Nxd4 {[%emt 0:00:02]} Ne5 {[%emt 0:00:24]} 38. c5 {[%emt 0:02:34]} Ra8 $2 {[%emt 0:00:10]} (38... Kf7 39. Re4 Re8) 39. f4 {[%emt 0:01:15]} Nc4 {[%emt 0:00:12]} 40. Rc3 {[%emt 0:00:00]} Nxa3 {[%emt 0:00:00]} 41. Nxc6 {[%emt 0:01:42]} Nb5 {[%emt 0:00:32]} 42. Rd3 {[%emt 0:00:46]} Ra2+ {[%emt 0:00:25]} 43. Kf3 {[%emt 0:00:33]} Kf7 {[%emt 0:03:52]} 44. Rd7+ {[%emt 0:06:01]} Ke6 {[%emt 0:00:09]} 45. Rb7 {[%emt 0:00:48]} Ra3+ {[%emt 0:00:10]} 46. Kf2 {[%emt 0:00:35]} Nc3 {[%emt 0:00:39]} 47. Nd4+ $1 {[%emt 0:06:06]} (47. Rxh7 Ne4+ 48. Kf1 Kd5 $16) 47... Kd5 {[%emt 0:00:23]} 48. Rd7+ {[%emt 0:00:09]} Ke4 {[%emt 0:00:38]} (48... Kc4 $142 49. c6 Nb5 50. Nxb5 Kxb5) 49. Nc2 {[%emt 0:02:58]} (49. c6 $142 Nd5 50. Nb5) 49... Ra2 $18 {[%emt 0:00:35]} 50. Rd2 $1 {[%emt 0:00:35]} Ra6 $2 {[%emt 0:05:45]} (50... Rb2 $16 51. c6 Nb5 52. Re2+ Kd3 53. Ne1+ Kc3 54. Rxb2 Kxb2) 51. Rd4+ $18 {[%emt 0:00:34]} Kf5 {[%emt 0:00:09]} 52. Rc4 {[%emt 0:01:24]} Ne4+ {[%emt 0:02:08]} (52... Nb5 $142 53. Nd4+ Nxd4 54. Rxd4 Ke6) 53. Ke3 $18 {[%emt 0:00:42]} Nxg3 {[%emt 0:00:47]} 54. c6 {[%emt 0:01:23]} (54. Kf3 $142 Ke6 55. b5 (55. Kxg3 Kd7 $18)) 54... Kg4 {[%emt 0:02:42]} 55. Nd4 {[%emt 0:02:03]} (55. Kd3 $142 Nf5 56. Ne3+ (56. b5 Rb6 $18) 56... Kh3 57. Nxf5 Ra3+ 58. Rc3) 55... Ra3+ $18 {[%emt 0:00:13]} 56. Kd2 {[%emt 0:01:21]} Ne4+ {[%emt 0:00:24]} 57. Kc2 {[%emt 0:00:57]} Nd6 {[%emt 0:00:14]} 58. c7 {[%emt 0:01:25]} Ra8 {[%emt 0:00:18]} (58... Nc8 $142 59. f5 Ra6) 59. Rc6 $18 {[%emt 0:00:35]} Rc8 {[%emt 0:01:41]} 60. Rxd6 {[%emt 0:06:46]} (60. b5 $142) 60... Rxc7+ $18 {[%emt 0:00:13]} 61. Kd3 {[%emt 0:00:04]} Kxf4 {[%emt 0:02:04]} 62. Ne6+ $2 {[%emt 0:00:01]} ({Don't play} 62. Rxf6+ Kg4 63. b5 Kh5) (62. b5 $18) 62... Ke5 $16 {[%emt 0:00:10] [#]} 63. Ra6 $1 {[%emt 0:02:30]} Rc1 {[%emt 0:00:24] [#]} 64. Nc5 {[%emt 0:00:15]} (64. Nf8 $1 $18) 64... f5 $2 {[%emt 0:00:37]} (64... h5 $16) 65. Nb3 $18 {[%emt 0:00:32]} Rc8 {[%emt 0:00:25]} 66. Ra5+ $2 {[%emt 0:01:41]} (66. b5 $18 {and the rest is easy.}) 66... Kf4 $16 {[%emt 0:02:40]} 67. b5 {[%emt 0:00:23]} Kg3 $2 {[%emt 0:00:07][%mdl 8192]} (67... Rb8 $16) 68. b6 $18 {[%emt 0:00:22]} Rb8 {[%emt 0:00:02]} 69. Rb5 {[%emt 0:00:12]} f4 $2 {[%emt 0:00:06]} (69... h5 70. Nd4 Rb7) 70. b7 $2 {[%emt 0:01:26]} (70. Nc5 $18 {is the precise move to win. Hoping for b7.} h5 71. Ke2) 70... h6 $2 {[%emt 0:00:20][%mdl 8192]} (70... f3 $16 71. Nd2 Kg2) 71. Na5 {[%emt 0:00:25]} (71. Nc5 $142 f3 72. Ke3) 71... f3 $18 {[%emt 0:00:09]} 72. Nc6 $4 {[%emt 0:01:19][%mdl 8192]} (72. Nc4 $18) 72... f2 $19 {[%emt 0:00:16]} 73. Ke2 {[%emt 0:01:06]} Kg2 $1 {[%emt 0:00:27]} 74. Rb1 {[%emt 0:01:10]} Rxb7 $1 {[%emt 0:00:06]} 75. Rc1 {[%emt 0:00:43]} Rb2+ {[%emt 0:00:14]} 0-1

[Event "3rd Sunway Formentera-A 2024"]
[Site "Formentera"]
[Date "2024.04.17"]
[Round "8.10"]
[White "Mekhane, Adam"]
[Black "Kazarian, Anna-Maja"]
[Result "0-1"]
[ECO "C03"]
[WhiteElo "2307"]
[BlackElo "2207"]
[Annotator "TA"]
[PlyCount "122"]
[EventDate "2024.04.03"]
[EventType "swiss"]
[EventCountry "ESP"]
[SourceTitle "playchess.com"]
[Source "ChessBase"]
[SourceQuality "1"]
[TimeControl "40/5400+30:1800+30"]

{[%evp 18,122,40,12,15,14,29,12,64,64,64,64,60,77,66,66,60,67,82,10,237,50,47,56,52,29,52,2,17,0,0,0,0,0,0,-766,-758,-739,-711,-718,-312,-402,-177,-2105,-1794,-1863,-1845,-1731,-672,-677,-616,-583,-533,-625,-626,-538,-364,-761,-744,-743,-679,-1823,-1450,-12776,-12844,-4133,-29946,-11629,-29953,-29955,-29958,-29962,-29963,-29962,-29963,-29962,-29963,-29960,-29958,-4758,-1483,-29974,-29975,-29975,-29975,-29980,-29981,-29981,-29982,-29982,-29983,-29983,-29984,-29984,-29978,-29978,-29979,-29979,-29980,-29980,-29981,-29987,-29988,-29988,-29989,-29989,-29990]} 1. e4 {[%emt 0:04:14]} e6 {[%emt 0:00:07]} 2. d4 {[%emt 0:00:19]} d5 {[%emt 0:00:04]} 3. Nd2 {[%emt 0:00:16]} Be7 {[%emt 0:00:08]} 4. c3 {[%emt 0:00:47]} c5 {[%emt 0:02:53]} 5. dxc5 {[%emt 0:01:02]} Nf6 {[%emt 0:03:26]} 6. exd5 {[%emt 0:00:42] C03: French Tarrasch: Unusual Black 3rd moves.} Qxd5 {[%emt 0:02:33]} 7. b4 {[%emt 0:01:01]} a5 {[%emt 0:01:39]} 8. Ngf3 {[%emt 0:01:35]} Nc6 {[%emt 0:13:19]} 9. Bc4 {[%emt 0:02:57]} Qh5 {[%emt 0:00:19]} 10. b5 $146 {[%emt 0:01:10]} ({Predecessor:} 10. Rb1 e5 11. Qe2 e4 12. Nd4 Bg4 13. Qe3 Ne5 14. Bb5+ Kf8 15. O-O Nd5 16. Qxe4 Nxc3 17. Qxb7 Rd8 18. Rb3 axb4 19. c6 Rxd4 20. c7 Nxb5 21. Qb8+ Bd8 {1-0 Sanal,V (2490)-Savchenko,B (2562) Wch Blitz St Petersburg 2018 (6)}) 10... Ne5 {[%emt 0:00:54]} 11. a4 {[%emt 0:07:22]} (11. O-O {simplifies} Nxf3+ 12. Qxf3 Qxf3 13. Nxf3 Bxc5 14. Be2) 11... Bxc5 {[%emt 0:08:36]} (11... Nxf3+ {simplifies} 12. Qxf3 Qxf3 13. gxf3 Bxc5 14. O-O O-O) 12. O-O {[%emt 0:06:48]} Nxc4 {[%emt 0:12:57]} (12... Nxf3+ $11 13. Qxf3 Qxf3 14. gxf3 Ke7) 13. Nxc4 $14 {[%emt 0:00:22]} Nd5 {[%emt 0:00:16]} 14. Ba3 {[%emt 0:09:14]} Bxa3 {[%emt 0:04:30]} 15. Rxa3 {[%emt 0:02:24]} O-O {[%emt 0:01:30]} 16. Qd4 {[%emt 0:03:40]} f6 {[%emt 0:08:53]} 17. Rd1 {[%emt 0:12:15]} g5 {[%emt 0:01:12]} 18. Nb6 {[%emt 0:19:11]} (18. Nd6 $16) 18... Nf4 $2 {[%emt 0:02:29] [#]} (18... Nxb6 $11 {and Black has nothing to worry.} 19. Qxb6 g4) 19. Qe3 $2 {[%emt 0:04:28]} (19. Nxa8 $2 Ne2+ 20. Kh1 Nxd4 21. cxd4 e5 22. dxe5 Bg4 $19) ({White has to play} 19. Qd6 $1 $18 e5 (19... Qg4 $2 20. Ne1 $18) 20. c4 (20. Nxa8 Bh3 $18)) 19... Qg4 $14 {[%emt 0:15:08]} 20. g3 $1 {[%emt 0:00:12]} (20. Nxa8 $2 Qxg2#) 20... Rb8 $1 {[%emt 0:02:07]} 21. Kh1 {[%emt 0:02:02]} Nh3 {[%emt 0:00:31]} 22. Rd4 {[%emt 0:09:16]} ({White should play} 22. c4 $14) 22... Qf5 $11 {[%emt 0:00:15]} 23. Ra1 {[%emt 0:01:34]} (23. Rd6 {feels hotter.} e5 24. Kg2 g4 25. Nd2) 23... e5 {[%emt 0:03:44]} 24. Rd2 {[%emt 0:00:05]} Be6 {[%emt 0:00:20]} 25. Ng1 {[%emt 0:01:17]} Rbd8 {[%emt 0:00:37]} 26. Rad1 $2 {[%emt 0:05:12][%mdl 8192]} (26. Nxh3 $11 Rxd2 (26... Qxh3 27. Kg1 $14) 27. Qxd2 Qf3+ 28. Kg1 Bxh3 29. Qd5+ Qxd5 30. Nxd5) 26... Rxd2 $19 {[%emt 0:02:17]} 27. Rxd2 {[%emt 0:00:10]} Qb1 {[%emt 0:03:39]} 28. f3 {[%emt 0:00:07]} g4 {[%emt 0:00:23]} (28... Qc1 $142 29. Rd3 Qf1) 29. fxg4 {[%emt 0:04:35]} Bxg4 {[%emt 0:03:05]} (29... Kg7 $142 30. Kg2 Nxg1) 30. Rg2 $2 {[%emt 0:00:33]} (30. Kg2 Nxg1 31. Qxg1 Qe4+ 32. Kf1) 30... e4 $19 {[%emt 0:00:53]} 31. Nc4 {[%emt 0:01:10]} Bf3 {[%emt 0:01:09]} 32. Nd2 {[%emt 0:00:00]} Bxg2+ {[%emt 0:00:18]} (32... Qc1 $142 33. b6 Rd8 (33... Bxg2+ $2 34. Kxg2 Nxg1 35. Qd4 $19) 34. Ndxf3 Qxe3) 33. Kxg2 $19 {[%emt 0:00:00]} Qxg1+ {[%emt 0:00:08]} 34. Qxg1 {[%emt 0:00:00]} Nxg1 {[%emt 0:00:05]} 35. Kxg1 {[%emt 0:00:03]} f5 {[%emt 0:00:52]} 36. Nc4 {[%emt 0:00:13]} Kf7 {[%emt 0:03:39]} 37. Nd6+ $2 {[%emt 0:01:04]} (37. Nxa5 Ra8 38. Nxb7 Rxa4 39. Nd8+ Ke7 40. Nc6+ Kd6 41. Nd4) 37... Ke6 $19 {[%emt 0:00:21]} 38. Nxb7 {[%emt 0:00:02]} Kd5 {[%emt 0:02:03]} 39. Nxa5 {[%emt 0:00:11]} e3 {[%emt 0:00:55]} 40. Kf1 {[%emt 0:00:00] [#]} f4 $1 {[%emt 0:00:00]} 41. gxf4 {[%emt 0:13:30]} Rxf4+ {[%emt 0:01:09]} 42. Ke2 {[%emt 0:01:01]} Rxa4 {[%emt 0:00:37]} 43. Nc6 {[%emt 0:05:29]} Ke4 {[%emt 0:01:16]} 44. Nb4 {[%emt 0:01:43]} Ra5 {[%emt 0:03:57]} 45. b6 {[%emt 0:03:26]} Rb5 {[%emt 0:02:58]} 46. Nd3 {[%emt 0:00:40]} Rxb6 {[%emt 0:02:10]} 47. Nc5+ {[%emt 0:00:05]} Kd5 {[%emt 0:00:38]} 48. Nd3 {[%emt 0:01:17]} Rh6 {[%emt 0:01:28]} (48... Rb3 $142 49. Kxe3 Rxc3) 49. h3 {[%emt 0:02:18]} Ke4 {[%emt 0:00:27]} ({Weaker is} 49... Rxh3 50. Nf4+ Kc4 51. Nxh3 $11) 50. Nc5+ {[%emt 0:00:12]} Kf5 {[%emt 0:00:30]} 51. Kxe3 {[%emt 0:01:43]} Rxh3+ {[%emt 0:00:04]} 52. Kd4 {[%emt 0:00:37]} h5 {[%emt 0:00:24]} 53. c4 {[%emt 0:00:17]} h4 {[%emt 0:00:35]} 54. Ne4 {[%emt 0:00:46]} Rf3 {[%emt 0:00:54]} 55. Nd6+ {[%emt 0:00:59]} Kg4 {[%emt 0:06:09]} 56. c5 {[%emt 0:00:20]} h3 {[%emt 0:00:05]} 57. c6 {[%emt 0:00:14]} h2 {[%emt 0:00:57]} 58. c7 {[%emt 0:00:10]} Rf8 {[%emt 0:00:10]} (58... h1=R 59. c8=Q+ (59. c8=B+ $2 Kg5 $19) 59... Kg3 60. Ne4+ Kf4 61. Qc7+ Kf5 62. Qf7+ Kg4 63. Qg6+ Kh4 64. Qg5+ Kh3 65. Qh5+ Kg2 66. Qg4+ Kh2 67. Qxf3) 59. Ne4 {[%emt 0:00:26]} Kf4 {[%emt 0:00:56]} 60. Nf2 {[%emt 0:00:35]} Kf3 {[%emt 0:00:23]} 61. Nh1 {[%emt 0:00:21]} Kg2 {[%emt 0:00:13]} 0-1

[Event "3rd Sunway Formentera-A 2024"]
[Site "Formentera"]
[Date "2024.04.17"]
[Round "8.11"]
[White "Sereinig, Eduard"]
[Black "Botez, Andrea"]
[Result "0-1"]
[ECO "B38"]
[WhiteElo "1990"]
[BlackElo "1879"]
[Annotator "TA"]
[PlyCount "90"]
[EventDate "2024.04.03"]
[EventType "swiss"]
[EventCountry "ESP"]
[SourceTitle "playchess.com"]
[Source "ChessBase"]
[SourceQuality "1"]
[TimeControl "40/5400+30:1800+30"]

{[%evp 11,90,46,37,50,53,30,0,8,12,14,41,0,0,0,0,0,0,-6,0,0,0,0,12,-18,-19,-35,-46,-39,-28,-24,-27,-26,-26,-49,-45,-64,-72,-84,-83,-80,-78,-99,-84,-84,-89,-89,-89,-97,-83,-107,-91,-85,-90,-87,-83,-95,-92,-94,-83,-84,-81,-119,-120,-104,-64,-243,-243,-306,-164,-1074,-1069,-29984,-29980,-29989,-29990,-29998,-29983,-29983,-29984,-29984,-29982]} 1. e4 {[%emt 0:00:02]} c5 {[%emt 0:00:12]} 2. Nf3 {[%emt 0:00:35]} g6 {[%emt 0:00:45]} 3. d4 {[%emt 0:01:12]} cxd4 {[%emt 0:00:29]} 4. Nxd4 {[%emt 0:00:08]} Bg7 {[%emt 0:00:32]} 5. c4 {[%emt 0:01:41]} Nc6 {[%emt 0:00:47]} 6. Be3 {[%emt 0:01:35]} Qb6 {[%emt 0:00:12][%csl LRb2,LRd4]} 7. Nb3 {[%emt 0:00:47]} Qd8 {[%emt 0:00:07]} 8. Nc3 {[%emt 0:02:45]} Bxc3+ {[%emt 0:00:32]} 9. bxc3 {[%emt 0:03:20] The position is equal.} Nf6 {[%emt 0:00:47]} 10. f3 {[%emt 0:00:58]} d6 {[%emt 0:01:25]} 11. Be2 {[%emt 0:04:17]} (11. Bh6 $14) 11... O-O $11 {[%emt 0:00:51]} 12. O-O {[%emt 0:00:21]} b6 {[%emt 0:00:33]} 13. a4 {[%emt 0:10:34][%cal Oa4a5]} Qc7 {[%emt 0:07:44]} 14. a5 {[%emt 0:03:57] [#] axb6 is the strong threat.} Bd7 {[%emt 0:05:26]} 15. Qd2 {[%emt 0:13:41]} Rfc8 {[%emt 0:04:28]} 16. Qa2 {[%emt 0:03:08]} bxa5 {[%emt 0:08:13][%cal Oa5a4]} 17. Nxa5 {[%emt 0:03:11]} (17. c5 {with more complications.} d5 18. Ba6 dxe4 19. Bxc8 Bxc8 20. fxe4 Ba6 21. Rf4) 17... Be6 {[%emt 0:01:12]} 18. Nxc6 {[%emt 0:20:05]} Qxc6 {[%emt 0:00:16]} 19. Rfb1 {[%emt 0:00:18][%cal Ob1b4]} Bxc4 {[%emt 0:03:22]} 20. Bxc4 {[%emt 0:01:56]} Qxc4 {[%emt 0:00:05]} 21. Qxc4 {[%emt 0:00:08]} Rxc4 {[%emt 0:00:08]} 22. Rb7 {[%emt 0:00:06]} Kf8 {[%emt 0:02:14][%cal Oa7a5]} 23. Ra3 {[%emt 0:06:29][%cal Oe3d4]} a5 {[%emt 0:02:31]} 24. Kf2 {[%emt 0:03:31]} Ke8 {[%emt 0:02:09]} 25. Ke2 {[%emt 0:07:25]} Nd7 {[%emt 0:01:21]} 26. Kd2 {[%emt 0:00:56]} Kd8 {[%emt 0:06:44]} 27. Rb5 {[%emt 0:01:23]} a4 {[%emt 0:02:09]} 28. Kd3 {[%emt 0:02:26]} Rc6 {[%emt 0:01:43]} 29. f4 {[%emt 0:00:45] Wards off Ne5+} Rca6 {[%emt 0:06:29]} 30. Bd4 {[%emt 0:00:49]} Kc7 {[%emt 0:01:05]} 31. Rb4 {[%emt 0:00:21]} Nb8 {[%emt 0:01:26]} 32. Be3 {[%emt 0:01:18]} Nc6 {[%emt 0:00:29]} 33. Rb2 {[%emt 0:00:53]} f5 {[%emt 0:03:42]} 34. g3 {[%emt 0:01:57]} e6 {[%emt 0:07:37]} 35. exf5 {[%emt 0:00:45]} gxf5 {[%emt 0:00:22]} 36. Re2 {[%emt 0:01:07]} e5 {[%emt 0:01:58]} 37. fxe5 {[%emt 0:01:10]} dxe5 {[%emt 0:01:45]} 38. Kc4 $2 {[%emt 0:00:19] [#] White does not recover from this.} (38. Rf2 $15) 38... Na5+ $19 {[%emt 0:05:12]} 39. Kb5 {[%emt 0:02:02]} Nb3 {[%emt 0:00:28]} (39... Nb7 $142 {( -> ...Nd6+)} 40. Kc4 Nd6+ 41. Kd3 Nb5) 40. Rf2 $2 {[%emt 0:00:00]} (40. c4) 40... Rc6 {[%emt 0:00:00]} 41. Rxb3 {[%emt 0:17:56]} Rb8+ {[%emt 0:04:52] Black mates.} 42. Ka5 {[%emt 0:00:12]} axb3 {[%emt 0:00:24]} 43. Bc1 {[%emt 0:01:18]} Rxc3 {[%emt 0:01:43]} 44. Bb2 {[%emt 0:00:03]} Rc2 {[%emt 0:00:27]} 45. Bxe5+ {[%emt 0:00:43]} Kc6 {[%emt 0:00:20] Weighted Error Value: White=0.42/Black=0.10 (very precise) .  Loses game:     	White=1     	---        Mistake:       	White=2     	Black=1      Inaccurate:     	White=3     	Black=1      OK:         	White=12    	Black=16     Best:        	---       	Black=2} 0-1